bitfinex/quotes_ETHUSD_20240915
["timestamp","ask_amount","ask_price","bid_price","bid_amount"]
[1726433955870,4.22146,2368.9,2368.6,0.88711376]
[1726433961217,4.22146,2368.9,2368.5,3.25141376]
[1726433961416,0.03777931,2368.8,2368.6,0.88711376]
[1726433964520,0.03777931,2368.8,2368.5,3.25141376]
[1726433964720,0.03777931,2368.8,2368.6,0.88711376]
[1726433965284,0.03777931,2368.8,2368.5,3.25141376]
[1726433965594,0.03777931,2368.8,2368.6,0.88711376]
[1726433967919,0.03777931,2368.8,2368.6,1.76695836]
[1726433968106,4.22119,2369.0,2368.6,1.76695836]
[1726433968295,0.03777931,2368.7,2368.6,0.55]
[1726433968628,0.03779367,2368.7,2368.5,3.25141376]
[1726433968841,4.22138,2368.9,2368.5,3.25141376]
[1726433969185,0.03779367,2368.6,2368.5,3.25141376]
[1726433969391,4.22138,2368.9,2368.5,2.3643]
[1726433969631,0.03779367,2368.8,2368.6,0.88676348]
[1726433969826,0.03779367,2368.8,2368.5,3.25106348]
[1726433970506,0.03779367,2368.8,2368.6,0.88676348]
[1726433971034,0.03779367,2368.8,2368.5,3.25106348]
[1726433971243,0.03779367,2368.8,2368.6,0.88676348]
[1726433972842,0.03779367,2368.8,2368.5,3.25106348]
[1726433973241,0.03779367,2368.8,2368.6,0.88676348]
[1726433973469,0.03779367,2368.8,2368.5,3.25106348]
[1726433973854,0.03779367,2368.8,2368.6,0.88676348]
[1726433974081,0.03779367,2368.8,2368.5,3.25106348]
[1726433974246,0.03779367,2368.8,2368.6,0.88676348]
[1726433976152,0.03779367,2368.8,2368.5,3.25106348]
[1726433976367,0.03779367,2368.8,2368.6,0.88676348]
[1726433978258,4.22138,2368.9,2368.6,0.88676348]
[1726433980508,4.22172,2368.7,2368.5,3.25106348]
[1726433980737,4.22172,2368.7,2368.5,0.88676348]
[1726433981016,4.22208,2368.5,2368.4,0.88676348]
[1726433981178,4.22208,2368.5,2368.3,1.32481224]
[1726433981179,4.22225,2368.4,2368.3,0.88676348]
[1726433981376,4.22225,2368.4,2368.2,0.88676348]
[1726433983417,4.22225,2368.4,2368.1,3.35456348]
[1726433983606,4.22225,2368.4,2368.2,0.88676348]
[1726433984681,4.22225,2368.4,2368.1,3.35456348]
[1726433985406,4.22225,2368.4,2368.2,0.88676348]
[1726433985896,4.22197,2368.6,2368.2,0.88676348]
[1726433986273,4.22221,2368.5,2368.2,0.88676348]
[1726433986499,4.22227,2368.4,2368.1,3.35456348]
[1726433988821,4.22261,2368.2,2367.9,0.88676348]
[1726433989485,4.22283,2368.1,2367.9,0.88676348]
[1726433989684,8.44576,2368.1,2367.8,0.88676348]
[1726433990219,4.22299,2368.0,2367.7,3.39336998]
[1726433991635,4.22283,2368.1,2367.7,3.39336998]
[1726433992295,4.22283,2368.1,2367.7,2.5066065]
[1726433993727,8.44572,2368.1,2367.8,0.55]
[1726433994091,4.22283,2368.1,2367.8,0.55]
[1726433999323,4.22269,2368.2,2367.8,0.55]
[1726434001332,4.22281,2368.1,2367.8,0.55]
[1726434001634,6.07265981,2368.3,2367.8,0.55]
[1726434002067,4.22255,2368.3,2367.8,0.55]
[1726434002276,4.22255,2368.3,2367.8,5.92366565]
[1726434002277,8.44513,2368.3,2367.8,5.92366565]
[1726434002439,4.22255,2368.3,2368.0,0.55]
[1726434002641,8.84583404,2368.6,2368.2,0.55]
[1726434002642,6.99572423,2368.6,2368.2,0.55]
[1726434002855,8.44428,2368.5,2368.2,0.55]
[1726434003095,6.99572423,2368.6,2368.1,6.67458]
[1726434003380,11.21773423,2368.6,2368.2,0.55]
[1726434003585,4.22201,2368.6,2368.2,0.55]
[1726434006386,4.22209,2368.5,2368.2,0.55]
[1726434010184,4.22209,2368.5,2368.2,0.33384001]
[1726434011251,4.22209,2368.5,2367.9,0.88676348]
[1726434011252,6.07264981,2368.3,2367.9,2.2849]
[1726434011545,10.29525981,2368.3,2367.9,2.2849]
[1726434011845,10.29525981,2368.3,2367.9,2.07413359]
[1726434012339,4.22288,2368.1,2367.9,2.07413359]
[1726434013417,8.44594,2368.0,2367.9,2.07413359]
[1726434013622,4.22297,2368.0,2367.7,0.0388065]
[1726434013943,4.2232,2367.9,2367.7,0.0388065]
[1726434014152,4.22332,2367.8,2367.7,0.0388065]
[1726434014747,8.44664,2367.8,2367.7,0.0388065]
[1726434014955,4.22332,2367.8,2367.7,0.0388065]
[1726434015102,8.44664,2367.8,2367.7,0.0388065]
[1726434015847,12.66996,2367.8,2367.7,0.0388065]
[1726434017054,19.89328,2367.8,2367.7,0.0388065]
[1726434017722,19.89328,2367.8,2367.0,0.0388065]
[1726434017723,8.44914,2367.1,2367.0,0.0388065]
[1726434017926,14.52381981,2367.1,2367.0,0.0388065]
[1726434018376,17.52381981,2367.1,2367.0,0.0388065]
[1726434019045,21.74838981,2367.1,2367.0,0.0388065]
[1726434020049,19.69429515,2367.1,2367.0,0.0388065]
[1726434022490,23.91886515,2367.1,2367.0,0.0388065]
[1726434022848,19.69429515,2367.1,2367.0,0.0388065]
[1726434023049,23.91886515,2367.1,2367.0,0.0388065]
[1726434023961,23.91886515,2367.1,2366.3,0.0388065]
[1726434023962,8.45164,2366.4,2366.3,0.0388065]
[1726434024287,16.69804515,2366.4,2366.3,0.0388065]
[1726434024656,19.69804515,2366.4,2366.3,0.0388065]
[1726434027489,15.47222515,2366.4,2366.3,0.0388065]
[1726434038744,4.22582,2366.4,2366.3,2.4491065]
[1726434039302,4.22582,2366.4,2366.3,0.0388065]
[1726434042439,4.22565,2366.5,2366.3,0.0388065]
[1726434042440,4.22565,2366.5,2366.4,2.3964]
[1726434046706,4.22547,2366.6,2366.4,2.3964]
[1726434047291,4.22495,2366.9,2366.4,2.63992065]
[1726434047496,4.22512,2366.8,2366.4,2.63992065]
[1726434050594,4.22468,2367.1,2366.7,2.3078]
[1726434050828,8.44938,2367.1,2366.7,2.3078]
[1726434051132,8.44936,2367.1,2366.7,2.3078]
[1726434051735,4.22468,2367.1,2366.7,2.3078]
[1726434052138,8.44936,2367.1,2366.7,2.3078]
[1726434054724,4.22468,2367.1,2366.8,2.3257]
[1726434054924,8.44938,2367.1,2366.8,2.3257]
[1726434055331,4.2243,2367.3,2366.8,2.3257]
[1726434055630,4.2246,2367.1,2366.8,2.3257]
[1726434057105,8.44929,2367.1,2366.8,2.3257]
[1726434057318,4.2248,2367.0,2366.8,2.3257]
[1726434062140,4.22493,2366.9,2366.8,2.3257]
[1726434062515,8.44986,2366.9,2366.8,2.3257]
[1726434064943,4.22459,2367.1,2366.8,2.3257]
[1726434065374,4.22493,2366.9,2366.8,2.3257]
[1726434070905,8.24260807,2367.2,2366.4,2.2658]
[1726434071247,4.22539,2366.7,2366.4,2.2658]
[1726434073530,4.22564,2366.5,2366.4,2.2658]
[1726434073742,4.22564,2366.5,2366.3,0.0388065]
[1726434074240,4.22541,2366.7,2366.4,2.2658]
[1726434074915,4.22564,2366.5,2366.4,2.2658]
[1726434078866,4.22582,2366.4,2366.3,0.0388065]
[1726434079391,12.46980807,2366.4,2366.3,0.0388065]
[1726434081540,16.69562807,2366.4,2366.3,0.0388065]
[1726434083943,12.68121,2365.7,2365.6,0.0388065]
[1726434084142,14.74320874,2365.7,2365.6,0.0388065]
[1726434084347,16.91607783,2365.7,2365.6,0.0388065]
[1726434085081,21.69314783,2365.7,2365.6,0.0388065]
[1726434085484,21.69314783,2365.7,2364.9,0.0388065]
[1726434085485,8.45664,2365.0,2364.9,0.0388065]
[1726434088279,12.68496,2365.0,2364.9,0.0388065]
[1726434089051,8.45664,2365.0,2364.9,0.0388065]
[1726434089613,12.68496,2365.0,2364.9,0.0388065]
[1726434089757,8.45664,2365.0,2364.9,0.0388065]
[1726434096199,4.22832,2365.0,2364.9,2.4055065]
[1726434099218,8.45664,2365.0,2364.9,0.0388065]
[1726434100212,12.68496,2365.0,2364.9,0.0388065]
[1726434100380,8.45664,2365.0,2364.9,0.0388065]
[1726434100581,12.68496,2365.0,2364.9,0.0388065]
[1726434100834,8.45664,2365.0,2364.9,0.0388065]
[1726434103026,12.68496,2365.0,2364.9,0.0388065]
[1726434104644,4.22832,2365.0,2364.9,2.4055065]
[1726434104846,4.22832,2365.0,2364.9,2.64605715]
[1726434104999,4.22832,2365.0,2364.9,2.4055065]
[1726434108594,4.22832,2365.0,2364.9,0.0388065]
[1726434108595,12.47480807,2365.0,2364.9,0.0388065]
[1726434109216,16.70312807,2365.0,2364.9,0.0388065]
[1726434110642,12.47480807,2365.0,2364.9,0.0388065]
[1726434111001,16.70312807,2365.0,2364.9,0.0388065]
[1726434119483,12.47480807,2365.0,2364.9,0.0388065]
[1726434119713,16.70312807,2365.0,2364.9,0.0388065]
[1726434120389,12.47480807,2365.0,2364.9,0.0388065]
[1726434122261,8.45664,2365.0,2364.9,0.0388065]
[1726434122780,4.22832,2365.0,2364.9,0.0388065]
[1726434123153,8.45664,2365.0,2364.9,0.0388065]
[1726434123357,12.47480807,2365.0,2364.9,0.0388065]
[1726434125322,8.45664,2365.0,2364.9,0.0388065]
[1726434127442,12.47480807,2365.0,2364.9,0.0388065]
[1726434128193,8.45664,2365.0,2364.9,0.0388065]
[1726434133345,12.47480807,2365.0,2364.9,0.0388065]
[1726434134458,16.70312807,2365.0,2364.9,0.0388065]
[1726434135621,20.93144807,2365.0,2364.9,0.0388065]
[1726434137219,25.70976807,2365.0,2364.9,0.0388065]
[1726434137425,24.48144807,2365.0,2364.9,0.0388065]
[1726434138152,28.70976807,2365.0,2364.9,0.0388065]
[1726434138360,28.70976807,2365.0,2364.2,2.5155065]
[1726434138361,16.70690807,2364.3,2364.2,0.0388065]
[1726434145608,8.45916,2364.3,2364.2,2.5155065]
[1726434145914,4.22958,2364.3,2364.2,2.4155065]
[1726434149141,4.22915,2364.6,2364.2,2.65705715]
[1726434149432,4.22941,2364.4,2364.2,2.65705715]
[1726434150204,4.22878,2364.8,2364.4,2.4099]
[1726434151224,4.22892,2364.7,2364.4,2.4099]
[1726434151629,8.45757,2364.8,2364.4,2.4099]
[1726434151798,4.22878,2364.8,2364.4,2.4099]
[1726434151999,4.22886,2364.7,2364.4,2.4099]
[1726434153627,4.22906,2364.6,2364.4,2.4099]
[1726434154917,8.45762,2364.8,2364.4,2.4099]
[1726434155116,4.22892,2364.7,2364.4,2.4099]
[1726434155625,4.22878,2364.8,2364.4,2.65089]
[1726434156310,4.22853,2364.9,2364.5,2.3259]
[1726434156508,4.22853,2364.9,2364.6,2.3259]
[1726434157439,4.22869,2364.8,2364.6,2.3259]
[1726434159516,4.22854,2364.9,2364.6,2.3259]
[1726434159998,4.22886,2364.7,2364.6,2.3259]
[1726434160613,4.22909,2364.6,2364.2,2.4259]
[1726434160828,4.01816807,2364.5,2364.2,2.4259]
[1726434161040,4.22958,2364.3,2364.2,2.4259]
[1726434161717,4.22952,2364.4,2364.2,2.4259]
[1726434161912,4.22958,2364.3,2364.2,2.4259]
[1726434162122,4.22908,2364.6,2364.2,2.4259]
[1726434162333,4.22922,2364.5,2364.2,2.4259]
[1726434163200,4.2294,2364.4,2364.2,2.4259]
[1726434168258,4.22958,2364.3,2364.2,2.4259]
[1726434170955,4.2294,2364.4,2364.2,2.4259]
[1726434171263,4.22958,2364.3,2364.2,2.4259]
[1726434172661,4.2294,2364.4,2364.2,2.4259]
[1726434172865,8.45893,2364.4,2364.2,2.4259]
[1726434173361,8.45894,2364.4,2364.2,2.4259]
[1726434174322,4.22958,2364.3,2364.2,2.4259]
[1726434181323,8.45916,2364.3,2364.2,2.4259]
[1726434182664,4.01816807,2364.3,2363.7,3.21366348]
[1726434182871,7.01816807,2365.2,2363.5,2.3657065]
[1726434182872,4.23083,2363.6,2363.5,2.3657065]
[1726434183721,8.46166,2363.6,2363.5,2.3657065]
[1726434184370,8.46166,2363.6,2363.5,0.0388065]
[1726434185071,4.23057,2363.8,2363.5,2.3657065]
[1726434185577,8.46121,2363.8,2363.5,2.3657065]
[1726434185734,4.23074,2363.7,2363.5,2.3657065]
[1726434187471,4.23083,2363.6,2363.5,2.3657065]
[1726434190194,8.46166,2363.6,2363.5,0.0388065]
[1726434190685,8.46166,2363.6,2363.2,2.14954651]
[1726434190846,4.23137,2363.3,2363.2,2.14954651]
[1726434193991,8.46253,2363.4,2363.2,2.14954651]
[1726434194499,4.23054,2363.8,2363.0,2.4523]
[1726434194500,4.23172,2363.1,2363.0,2.4523]
[1726434194660,4.23172,2363.1,2362.8,2.4911065]
[1726434194661,4.23196,2363.0,2362.8,2.4911065]
[1726434195032,8.46416,2362.9,2362.8,0.0388065]
[1726434195225,16.71440807,2362.9,2362.8,0.0388065]
[1726434197312,19.71440807,2362.9,2362.8,0.0388065]
[1726434197546,19.71440807,2362.9,2362.4,0.005]
[1726434197548,19.9312,2362.5,2362.4,0.005]
[1726434197684,23.94936807,2362.5,2362.4,0.005]
[1726434197865,12.70056,2362.1,2362.0,0.0388065]
[1726434198061,19.71872807,2362.1,2362.0,0.0388065]
[1726434198292,19.71872807,2362.1,2361.3,0.0388065]
[1726434198293,4.23477,2361.4,2361.3,0.0388065]
[1726434198522,16.72247807,2361.4,2361.3,0.0388065]
[1726434198665,23.95724807,2361.4,2361.3,0.0388065]
[1726434198868,19.72247807,2361.4,2361.3,0.0388065]
[1726434199111,11.46954,2361.4,2361.3,0.0388065]
[1726434199294,15.48770807,2361.4,2361.3,0.0388065]
[1726434199471,15.48770807,2361.4,2361.0,0.01]
[1726434199667,15.48770807,2361.4,2359.6,0.88676348]
[1726434199668,4.23627,2360.6,2360.1,0.2329453]
[1726434199874,4.01816807,2361.0,2360.1,0.2329453]
[1726434199875,4.23597,2360.8,2360.1,0.2329453]
[1726434200071,4.23615,2360.7,2360.1,0.2329453]
[1726434200264,4.23615,2360.7,2360.1,0.1829453]
[1726434200796,4.23634,2360.6,2360.1,0.1829453]
[1726434201006,4.23622,2360.6,2360.1,0.1829453]
[1726434201210,3.0,2361.3,2360.1,0.1829453]
[1726434201211,4.01816807,2360.8,2360.1,0.1829453]
[1726434201409,4.23688,2360.3,2360.1,0.1829453]
[1726434201975,4.23652,2360.5,2360.1,0.1829453]
[1726434202514,4.23613,2360.7,2360.2,2.4523]
[1726434202701,4.23572,2360.9,2360.3,0.26352453]
[1726434202902,4.23572,2360.9,2360.2,2.4523]
[1726434202903,4.23604,2360.7,2360.2,2.4523]
[1726434203102,4.23572,2360.9,2360.2,2.71582453]
[1726434203350,8.47155,2360.9,2360.2,2.71582453]
[1726434203548,4.23544,2361.1,2360.2,2.71582453]
[1726434203765,4.23544,2361.1,2360.4,2.4523]
[1726434203910,4.23566,2361.0,2360.4,2.4523]
[1726434204330,4.23539,2361.1,2360.5,0.55]
[1726434204606,4.23518,2361.2,2360.5,0.8792177]
[1726434204801,4.23518,2361.2,2360.6,2.4523]
[1726434205609,8.25302807,2361.4,2360.7,0.55]
[1726434205815,4.23502,2361.3,2360.7,0.55]
[1726434206011,4.23486,2361.4,2360.9,0.55]
[1726434206246,4.23449,2361.6,2360.9,0.90523]
[1726434206453,4.23449,2361.6,2361.0,2.4523]
[1726434206656,8.25224807,2361.8,2361.1,0.55]
[1726434206951,4.23408,2361.8,2361.1,0.55]
[1726434207307,4.23408,2361.8,2361.3,0.55]
[1726434207813,4.23376,2362.0,2361.3,0.85023]
[1726434208210,4.23394,2361.9,2361.3,0.85023]
[1726434208407,4.23376,2362.0,2361.3,0.85023]
[1726434208613,4.23389,2361.9,2361.3,0.85023]
[1726434208815,4.23389,2361.9,2361.3,0.55]
[1726434209513,4.23451,2361.6,2360.6,2.4523]
[1726434209816,4.23525,2361.2,2360.6,2.4523]
[1726434210017,4.23552,2361.0,2360.6,2.4523]
[1726434210423,4.23589,2360.8,2360.6,2.4523]
[1726434211345,4.23557,2361.0,2360.6,2.4523]
[1726434211553,4.23567,2360.9,2360.6,2.4523]
[1726434212259,4.23557,2361.0,2360.6,2.4523]
[1726434213765,4.23569,2360.9,2360.6,2.4523]
[1726434213979,4.23519,2361.2,2360.6,2.69753]
[1726434214132,4.23519,2361.2,2360.7,0.55]
[1726434214133,4.23513,2361.2,2360.7,0.55]
[1726434214338,4.23513,2361.2,2360.7,0.874753]
[1726434214540,4.23483,2361.4,2360.7,0.874753]
[1726434214853,4.23514,2361.2,2360.7,0.55]
[1726434215072,8.4704,2361.2,2360.7,0.55]
[1726434215258,4.23514,2361.2,2360.7,0.55]
[1726434215457,4.23483,2361.4,2360.9,0.55]
[1726434215458,4.23478,2361.4,2360.9,0.55]
[1726434215687,4.2345,2361.6,2361.0,2.3272]
[1726434215865,4.23479,2361.4,2361.0,2.3272]
[1726434216471,4.23391,2361.9,2361.0,2.3272]
[1726434216800,3.0,2361.8,2361.0,2.3272]
[1726434216970,4.23461,2361.5,2361.0,2.3272]
[1726434217804,4.23481,2361.4,2361.1,0.55]
[1726434218164,4.23461,2361.5,2361.1,0.55]
[1726434218360,8.46866,2361.7,2361.1,0.55]
[1726434218565,4.23427,2361.7,2361.1,0.55]
[1726434219264,4.23427,2361.7,2361.2,0.28772]
[1726434219465,4.23427,2361.7,2361.3,2.8772]
[1726434220161,4.23463,2361.5,2361.3,2.8772]
[1726434220357,4.23488,2361.4,2361.1,0.55]
[1726434220668,4.23463,2361.5,2361.1,0.55]
[1726434222522,4.23531,2361.1,2361.0,2.3272]
[1726434222659,4.23531,2361.1,2360.8,2.3272]
[1726434223602,8.47012,2361.3,2360.8,2.3272]
[1726434223898,8.47009,2361.3,2360.8,2.3272]
[1726434224591,4.23503,2361.3,2360.8,2.3272]
[1726434225261,4.23533,2361.1,2360.8,2.3272]
[1726434226015,4.23501,2361.3,2360.8,2.3272]
[1726434226665,8.47009,2361.3,2360.8,2.3272]
[1726434226866,4.23501,2361.3,2360.8,2.3272]
[1726434227084,4.23542,2361.1,2360.8,2.3272]
[1726434227292,4.2355,2361.0,2360.8,2.3272]
[1726434227470,4.2355,2361.0,2360.2,3.0]
[1726434227471,4.23614,2360.7,2360.2,2.3816]
[1726434228308,4.97050903,2361.0,2360.2,2.3816]
[1726434228526,4.23639,2360.5,2360.2,2.3816]
[1726434228858,4.23674,2360.3,2360.2,2.3816]
[1726434229205,8.47384,2360.2,2359.9,2.3866]
[1726434229521,4.23665,2360.4,2359.9,2.3866]
[1726434230315,4.23675,2360.3,2359.9,2.3866]
[1726434230531,4.23665,2360.4,2359.9,2.3866]
[1726434230969,4.2363,2360.6,2360.2,2.3816]
[1726434231171,4.23613,2360.7,2360.3,0.55]
[1726434231412,4.23588,2360.8,2360.3,0.55]
[1726434231718,8.47184,2360.8,2360.3,0.55]
[1726434231885,4.23603,2360.7,2360.3,0.55]
[1726434232220,4.23569,2360.9,2360.4,2.3393]
[1726434232510,4.23586,2360.8,2360.4,2.3393]
[1726434232731,8.47182,2360.8,2360.4,2.3393]
[1726434232940,4.23586,2360.8,2360.4,2.3393]
[1726434233601,8.47181,2360.8,2360.4,2.3393]
[1726434233802,4.23586,2360.8,2360.4,2.3393]
[1726434234000,8.47182,2360.8,2360.4,2.3393]
[1726434234208,8.47181,2360.8,2360.4,2.3393]
[1726434235038,4.23586,2360.8,2360.4,2.3393]
[1726434235336,4.23586,2360.8,2360.4,2.62823]
[1726434235701,4.23586,2360.8,2360.4,2.3393]
[1726434236438,8.47182,2360.8,2360.4,2.3393]
[1726434236635,4.23586,2360.8,2360.4,2.3393]
[1726434236844,8.47184,2360.8,2360.4,2.3393]
[1726434236989,4.23604,2360.7,2360.4,2.3393]
[1726434237307,4.23586,2360.8,2360.4,2.3393]
[1726434237703,8.47186,2360.8,2360.4,2.3393]
[1726434238003,4.23621,2360.6,2360.4,2.3393]
[1726434238220,8.47253,2360.6,2360.4,2.3393]
[1726434238935,4.23639,2360.5,2360.4,2.3393]
[1726434239105,4.23669,2360.4,2360.2,2.3393]
[1726434241602,4.23674,2360.3,2360.2,2.3393]
[1726434241954,3.0,2359.8,2359.3,0.0450183]
[1726434242112,7.23746,2359.9,2359.3,0.0450183]
[1726434242113,19.7538814,2359.5,2359.3,0.0450183]
[1726434242296,19.7538814,2359.5,2358.8,0.1]
[1726434242297,7.23836,2359.4,2358.8,0.1]
[1726434242497,23.9935014,2359.3,2358.8,0.1]
[1726434242953,0.71762876,2359.9,2358.8,0.1]
[1726434242954,8.47852,2358.9,2358.8,0.1]
[1726434243115,4.23913,2359.0,2358.8,0.1]
[1726434243451,4.23926,2358.9,2358.8,0.1]
[1726434243606,8.47852,2358.9,2358.8,0.1]
[1726434244003,4.23926,2358.9,2358.8,0.1]
[1726434244344,8.47852,2358.9,2358.8,0.1]
[1726434244548,4.23926,2358.9,2358.8,0.1]
[1726434245352,4.23922,2359.0,2358.8,0.1]
[1726434245954,4.23926,2358.9,2358.8,0.1]
[1726434246335,4.23922,2359.0,2358.8,0.1]
[1726434246541,4.23926,2358.9,2358.8,0.1]
[1726434246841,4.23922,2359.0,2358.8,0.1]
[1726434247214,4.23926,2358.9,2358.8,0.1]
[1726434247555,8.47852,2358.9,2358.8,0.1]
[1726434248550,4.23926,2358.9,2358.8,0.1]
[1726434249161,4.2391,2359.0,2358.8,0.1]
[1726434249671,11.47852,2358.9,2358.8,0.1]
[1726434249847,15.72372,2357.8,2357.7,3.62345041]
[1726434250052,25.64915669,2357.8,2357.7,3.62345041]
[1726434250357,12.74533536,2356.8,2356.6,0.3540625]
[1726434250565,12.74533536,2356.8,2355.7,0.0473211]
[1726434250566,15.73344,2356.0,2355.7,0.0473211]
[1726434250706,19.97792,2356.0,2355.9,0.0979926]
[1726434250905,24.95888587,2356.0,2355.9,0.0979926]
[1726434251145,25.50888587,2356.0,2355.9,0.0979926]
[1726434251387,21.2296,2355.2,2355.1,0.3540625]
[1726434251555,29.76056587,2355.2,2355.1,0.3540625]
[1726434251708,26.71624133,2355.2,2355.1,0.3540625]
[1726434251914,11.49184,2355.2,2355.1,0.3540625]
[1726434252146,15.73776,2355.2,2355.1,0.3540625]
[1726434252347,15.73776,2355.2,2353.1,4.2970211]
[1726434252348,15.73776,2355.2,2352.8,2.2829]
[1726434252349,0.1,2354.8,2352.8,2.2829]
[1726434252555,0.1,2354.8,2352.6,1.1359419]
[1726434252556,6.579404,2355.2,2354.0,0.0382199]
[1726434252557,4.24797,2354.1,2354.0,0.0382199]
[1726434252753,1.11456937,2355.2,2354.0,0.0382199]
[1726434252754,3.0,2355.0,2354.0,0.0382199]
[1726434252963,7.24612,2355.1,2354.0,0.0382199]
[1726434253122,2.1,2356.5,2354.1,2.2829]
[1726434253123,4.24451,2356.0,2354.1,2.2829]
[1726434253323,4.24451,2356.0,2354.0,0.0382199]
[1726434253324,3.0,2354.6,2354.0,0.0382199]
[1726434253947,4.24666,2354.8,2354.0,0.0382199]
[1726434254149,3.0,2354.9,2354.0,0.0382199]
[1726434254333,4.2479,2354.1,2354.0,0.0382199]
[1726434254534,5.35436199,2354.6,2354.0,0.0382199]
[1726434254761,4.24739,2354.4,2354.0,0.0382199]
[1726434254921,3.0,2354.6,2354.0,0.0382199]
[1726434254922,7.247,2354.6,2354.0,0.0382199]
[1726434255149,3.0,2354.9,2354.0,0.0382199]
[1726434255323,7.2479,2354.1,2354.0,0.0382199]
[1726434255509,11.49942,2353.1,2353.0,0.3540625]
[1726434255964,4.2494,2353.3,2353.0,0.3540625]
[1726434256110,13.85378199,2353.1,2353.0,0.3540625]
[1726434256463,21.68304047,2353.1,2353.0,0.3540625]
[1726434256763,21.68304047,2353.1,2351.6,2.7194625]
[1726434256764,17.00604,2352.1,2351.6,0.4365625]
[1726434256978,21.10889199,2352.1,2351.6,0.4365625]
[1726434257261,12.60587199,2352.1,2351.6,0.4365625]
[1726434257557,16.84238199,2352.1,2351.6,0.4365625]
[1726434257710,12.59087199,2352.1,2351.8,0.24014504]
[1726434257912,7.23651,2352.1,2351.8,0.24014504]
[1726434258258,4.2496,2353.2,2351.8,0.24014504]
[1726434258259,11.50376,2351.9,2351.8,0.24014504]
[1726434258414,2.0,2353.3,2351.8,0.24014504]
[1726434258415,3.0,2352.3,2351.8,0.24014504]
[1726434258815,7.25188,2351.9,2351.8,0.24014504]
[1726434259064,11.50376,2351.9,2351.8,0.24014504]
[1726434259582,21.11000199,2351.9,2351.8,0.24014504]
[1726434260110,16.85812199,2351.9,2351.8,0.24014504]
[1726434260260,12.1101982,2351.9,2351.8,0.24014504]
[1726434260454,11.50376,2351.9,2351.8,0.24014504]
[1726434260660,21.15462298,2351.9,2351.8,0.24014504]
[1726434260968,26.50898497,2351.9,2351.8,0.24014504]
[1726434261407,26.50898497,2351.9,2350.0,0.3]
[1726434261408,12.76323,2350.5,2350.0,0.3]
[1726434261560,12.76485,2350.2,2350.0,0.3]
[1726434261763,3.0,2350.4,2349.4,0.13654695]
[1726434261764,4.25568,2349.8,2349.4,0.13654695]
[1726434261961,8.35436199,2350.1,2349.4,0.13654695]
[1726434262207,5.35436199,2349.7,2349.4,0.13654695]
[1726434262515,11.51244,2349.5,2349.4,0.13654695]
[1726434262804,9.61038199,2349.7,2348.7,0.30056345]
[1726434262805,5.35436199,2349.7,2348.7,0.30056345]
[1726434263005,4.25623,2349.5,2348.7,0.5642597]
[1726434263210,4.25697,2349.1,2348.7,0.30056345]
[1726434263408,3.0,2349.6,2348.7,0.30056345]
[1726434263575,4.2566,2349.3,2348.7,0.55890979]
[1726434263982,5.35436199,2349.7,2348.8,2.2829]
[1726434263983,4.25594,2349.7,2348.8,2.2829]
[1726434264190,0.43759356,2350.4,2348.8,2.2829]
[1726434264191,4.25574,2349.8,2348.8,6.54024]
[1726434264393,3.0,2350.2,2348.9,0.70993398]
[1726434264600,4.25568,2349.9,2348.8,2.2829]
[1726434264922,4.25592,2349.7,2348.9,4.25731]
[1726434265229,3.43759356,2350.4,2349.3,0.55]
[1726434265230,4.25495,2350.2,2349.3,0.55]
[1726434265373,5.35436199,2350.0,2348.8,0.55]
[1726434265575,4.25567,2349.9,2348.9,4.25728]
[1726434265807,4.25567,2349.9,2349.0,4.80708]
[1726434266119,4.25515,2350.1,2349.3,4.25653]
[1726434266324,4.25478,2350.3,2348.8,0.55]
[1726434266611,4.25481,2350.3,2349.2,4.25673]
[1726434266794,4.25497,2350.2,2349.3,0.55]
[1726434266965,4.69219356,2350.4,2349.3,0.55]
[1726434267164,4.25409,2350.7,2349.6,4.25588]
[1726434267490,4.25231,2351.7,2349.3,0.55]
[1726434267491,5.59704732,2351.6,2349.8,4.25567]
[1726434267678,4.25394,2350.8,2349.8,4.25567]
[1726434267880,4.25318,2351.2,2350.2,4.25493]
[1726434268080,4.25318,2351.2,2350.1,2.4024]
[1726434268081,4.25383,2350.9,2350.1,2.4024]
[1726434268283,4.25495,2350.2,2349.7,2.4024]
[1726434268483,4.25461,2350.4,2349.7,2.4024]
[1726434268484,4.25389,2350.8,2349.7,6.6582]
[1726434268677,5.35436199,2351.2,2349.8,0.24024]
[1726434268881,5.35436199,2351.2,2349.8,4.49587]
[1726434268882,4.25392,2350.8,2349.8,4.49587]
[1726434269094,4.25406,2350.7,2349.9,4.945297]
[1726434269537,4.25391,2350.8,2350.2,2.4024]
[1726434269824,4.25388,2350.8,2350.2,2.4024]
[1726434269981,4.25369,2350.9,2350.2,2.4024]
[1726434270184,5.35436199,2351.6,2350.2,2.4024]
[1726434270185,4.25387,2350.8,2350.2,2.4024]
[1726434271229,9.60695199,2351.6,2350.2,2.4024]
[1726434271230,4.25371,2350.9,2350.2,2.4024]
[1726434271432,4.2539,2350.8,2350.3,0.665752]
[1726434271597,4.25371,2350.9,2350.3,0.665752]
[1726434271800,4.25371,2350.9,2350.2,6.65735]
[1726434272103,4.25388,2350.8,2350.2,2.4024]
[1726434272317,4.25369,2350.9,2350.3,0.66575]
[1726434272831,4.25407,2350.7,2350.3,0.66575]
[1726434273137,4.25387,2350.8,2350.2,2.4024]
[1726434274248,4.25356,2351.0,2350.2,2.4024]
[1726434274420,5.35436199,2351.0,2350.2,2.4024]
[1726434274764,4.25436,2350.6,2350.2,2.4024]
[1726434274916,4.25399,2350.8,2350.2,2.4024]
[1726434275340,4.25405,2350.7,2350.2,2.4024]
[1726434275544,4.25399,2350.8,2350.2,2.4024]
[1726434275953,4.25421,2350.7,2350.2,2.4024]
[1726434276170,4.25421,2350.7,2348.8,6.66487]
[1726434276171,4.25638,2349.5,2348.8,6.66487]
[1726434276313,4.25553,2349.9,2348.8,2.4074]